fUSD/lending_fUSD_20240629
["ID","MTS","AMOUNT","RATE_DAILY","PERIOD"]
[330642482,1719682251534,-1661.27,0.00013893,3]
[330642483,1719682251544,-1465.53,0.00013893,3]
[330642484,1719682251553,-3179.36,0.00013893,3]
[330642485,1719682251563,-4700.37,0.00013893,3]
[330642486,1719682251574,-3505.92,0.00013893,3]
[330642487,1719682251584,-5652.30203378,0.00013893,3]
[330642488,1719682251598,-8151.51796622,0.00013893,3]
[330642489,1719682251607,-2209.09,0.00013893,3]
[330642490,1719682251617,-500.0,0.00013893,3]
[330642491,1719682251627,-547.23,0.00013893,3]
[330642492,1719682251637,-3362.65,0.00013893,3]
[330642493,1719682251647,-2821.65,0.00013893,3]
[330642494,1719682251661,-1128.25118968,0.00013893,3]
[330642495,1719682251672,-2336.20881032,0.00013893,3]
[330642496,1719682251682,-3340.2,0.00013893,3]
[330642497,1719682251691,-1125.31,0.00013893,3]
[330642498,1719682251701,-1247.56,0.00013893,3]
[330642499,1719682251710,-2409.52,0.00013893,3]
[330642500,1719682251720,-3447.18,0.00013893,3]
[330642501,1719682251729,-1412.96,0.00013893,3]
[330642502,1719682251738,-500.0,0.00013893,3]
[330642503,1719682251748,-843.1,0.00013893,3]
[330642504,1719682251758,-1885.18,0.00013893,3]
[330642505,1719682251767,-500.0,0.00013893,3]
[330642506,1719682251777,-3458.59,0.00013893,3]
[330642507,1719682251787,-2590.69,0.00013893,3]
[330642508,1719682251796,-499.557227,0.00013893,2]
[330642509,1719682251806,-499.557227,0.00013893,2]
[330642510,1719682251815,-2323.75,0.00013893,3]
[330642511,1719682251825,-1096.685682,0.00013893,2]
[330642512,1719682251835,-151.0,0.00013893,2]
[330642513,1719682251844,-1096.685682,0.00013893,2]
[330642514,1719682251855,-151.0,0.00013893,2]
[330642515,1719682251865,-151.0,0.00013893,2]
[330642516,1719682251875,-151.0,0.00013893,2]
[330642517,1719682251884,-3524.76,0.00013893,3]
[330642518,1719682251893,-3805.39,0.00013893,3]
[330642519,1719682251903,-1909.15,0.00013893,3]
[330642520,1719682251912,-2408.06,0.00013893,3]
[330642521,1719682251926,-4662.65,0.00013893,3]
[330642522,1719682251935,-151.0,0.00013893,2]
[330642523,1719682251945,-151.0,0.00013893,2]
[330642524,1719682251955,-3626.2,0.00013893,3]
[330642525,1719682251964,-500.0,0.00013894,2]
[330642526,1719682251973,-1074.55,0.00013894,2]
[330642527,1719682251983,-1761.01,0.00013894,2]
[330642528,1719682251992,-151.0,0.00013894,2]
[330642529,1719682252002,-187.882268,0.00013894,2]
[330642530,1719682252011,-151.0,0.00013894,2]
[330642531,1719682252020,-151.0,0.00013894,2]
[330642532,1719682252030,-151.0,0.00013894,2]
[330642533,1719682252040,-519.48,0.00013895,3]
[330642534,1719682252049,-500.0,0.00013895,3]
[330642535,1719682252059,-500.0,0.00013895,3]
[330642536,1719682252068,-1343.32,0.00013895,3]
[330642537,1719682252078,-714.44,0.00013895,3]
[330642538,1719682252089,-371.418609,0.00013895,2]
[330642539,1719682252098,-371.418609,0.00013895,2]
[330642540,1719682252107,-314.791303,0.00013895,2]
[330642541,1719682252117,-314.791303,0.00013895,2]
[330642542,1719682252126,-151.0,0.00013895,2]
[330642543,1719682252136,-151.0,0.00013895,2]
[330642544,1719682252146,-151.0,0.00013895,2]
[330642545,1719682252156,-500.0,0.00013896,2]
[330642546,1719682252166,-1761.01,0.00013896,2]
[330642547,1719682252176,-569.91537,0.00013896,2]
[330642548,1719682252185,-169.490808,0.00013897,2]
[330642549,1719682252196,-169.490808,0.00013897,2]
[330642550,1719682252206,-151.0,0.00013897,2]
[330642551,1719682252216,-151.0,0.00013897,2]
[330642552,1719682252225,-940.07,0.00013898,3]
[330642553,1719682252235,-500.0,0.00013898,3]
[330642554,1719682252246,-1479.31927373,0.00013898,3]
[330642555,1719682252260,-717.75861333,0.00013898,3]
[330642556,1719682252283,-276.224985,0.00013898,3]
[330642557,1719682252295,-1456.05712794,0.00013898,3]
[330642558,1719682252306,-151.0,0.00013898,2]
[330642559,1719682252316,-151.0,0.00013898,2]
[330642560,1719682252327,-151.0,0.00013898,2]
[330642561,1719682252337,-151.0,0.00013898,2]
[330642562,1719682252346,-151.0,0.00013898,2]
[330642563,1719682252357,-3020.15512419,0.00013898,3]
[330642564,1719682252378,-5636.59487581,0.00013898,3]
[330642565,1719682252389,-3402.82,0.00013898,3]
[330642566,1719682252399,-712.73466433,0.00013898,3]
[330642567,1719682252412,-4635.95533567,0.00013898,3]
[330642568,1719682252422,-500.0,0.00013898,3]
[330642569,1719682252431,-500.0,0.00013898,3]
[330642570,1719682252441,-3764.25632749,0.00013898,3]
[330642571,1719682252500,-508.28687562,0.00013898,3]
[330642572,1719682252513,-1157.75679689,0.00013898,3]
[330642573,1719682252524,-166.53982749,0.00013898,3]
[330642574,1719682252599,-455.69559883,0.00013898,3]
[330642575,1719682252612,-1425.19457368,0.00013898,3]
[330642576,1719682252622,-1614.07,0.00013898,3]
[330642577,1719682252632,-4296.78,0.00013898,3]
[330642578,1719682252642,-4069.58,0.00013898,3]
[330642579,1719682252655,-9420.6457013,0.00013899,2]
[330642580,1719682252665,-155.0,0.00013899,2]
[330642581,1719682252674,-155.09203532,0.00013899,2]
[330642582,1719682252684,-1505.31996907,0.000139,2]
[330642583,1719682252695,-1420.41161214,0.000139,2]
[330642584,1719682252704,-255.03402091,0.000139,2]
[330642585,1719682252714,-151.60133728,0.000139,2]
[330642586,1719682252724,-165.50364453,0.00013967,2]
[330642587,1719682252734,-500.0,0.00013987,2]
[330642588,1719682252745,-1761.01,0.00013987,2]
[330642589,1719682252754,-500.0,0.00013988,2]
[330642590,1719682252765,-3764.78,0.00013988,3]
[330642591,1719682252775,-6313.94,0.00013988,3]
[330642592,1719682252784,-2178.87,0.00013988,3]
[330642593,1719682252794,-1843.0,0.00013988,3]
[330642594,1719682252804,-6767.65,0.00013988,3]
[330642595,1719682252814,-170.17725265,0.00013989,2]
[330642596,1719682252824,-500.0,0.00013998,2]
[330642597,1719682252833,-151.594977,0.00013998,2]
[330642598,1719682252843,-151.594977,0.00013998,2]
[330642599,1719682252853,-151.0,0.00013998,2]
[330642600,1719682252863,-151.0,0.00013998,2]
[330642601,1719682252872,-151.0,0.00013998,2]
[330642602,1719682252882,-154.849861,0.00013998,2]
[330642603,1719682252892,-154.849861,0.00013998,2]
[330642604,1719682252902,-151.0,0.00013998,2]
[330642605,1719682252912,-1074.55,0.00013998,2]
[330642606,1719682252922,-1761.01,0.00013998,2]
[330642607,1719682252931,-209.66596824,0.00013999,2]
[330642608,1719682252941,-5916.48029099,0.00013999,2]
[330642609,1719682252960,-40912.46203547,0.00013999,2]
[330642610,1719682252971,-151.0,0.00013999,2]
[330642611,1719682252980,-500.0,0.00013999,2]
[330642612,1719682252990,-500.0,0.00013999,2]
[330642613,1719682253000,-189.4812981,0.00013999,2]
[330642614,1719682253009,-2882.59,0.00013999,3]
[330642615,1719682253019,-1077.71,0.00013999,3]
[330642616,1719682253030,-2383.61,0.00013999,3]
[330642617,1719682253040,-1864.29,0.00013999,3]
[330642618,1719682253049,-1267.3,0.00013999,3]
[330642619,1719682253059,-1164.53,0.00013999,3]
[330642620,1719682253069,-500.0,0.00013999,3]
[330642621,1719682253079,-1664.68,0.00013999,3]
[330642622,1719682253089,-1737.34,0.00013999,3]
[330642623,1719682253098,-948.71,0.00013999,3]
[330642624,1719682253108,-1600.41,0.00013999,3]
[330642625,1719682253117,-2799.29,0.00013999,3]
[330642626,1719682253127,-1897.78,0.00013999,3]
[330642627,1719682253136,-2857.62,0.00013999,3]
[330642628,1719682253146,-2478.33,0.00013999,3]
[330642629,1719682253156,-371.418609,0.00013999,2]
[330642630,1719682253165,-20000.0,0.00013999,2]
[330642631,1719682253175,-626.48,0.00013999,3]
[330642632,1719682253184,-371.418609,0.00013999,2]
[330642633,1719682253194,-506.21,0.00013999,3]
[330642634,1719682253203,-1654.48,0.00013999,3]
[330642635,1719682253213,-500.0,0.00013999,3]
[330642636,1719682253222,-1283.74,0.00013999,3]
[330642637,1719682253232,-2287.99,0.00013999,3]
[330642638,1719682253242,-500.0,0.00013999,3]
[330642639,1719682253251,-2427.26,0.00013999,3]
[330642640,1719682253260,-500.0,0.00013999,3]
[330642641,1719682253270,-500.0,0.00013999,3]
[330642642,1719682253280,-606.72923006,0.00013999,3]
[330642643,1719682253294,-487.81076994,0.00013999,3]
[330642644,1719682253303,-572.91,0.00013999,3]
[330642645,1719682253313,-3070.91,0.00013999,3]
[330642646,1719682253323,-1480.45,0.00013999,3]
[330642647,1719682253332,-2920.35,0.00013999,3]
[330642648,1719682253342,-2731.01,0.00013999,3]
[330642649,1719682253352,-2281.46,0.00013999,3]
[330642650,1719682253362,-500.0,0.00013999,3]
[330642651,1719682253371,-500.0,0.00013999,3]
[330642652,1719682253381,-2448.22,0.00013999,3]
[330642653,1719682253390,-732.46,0.00013999,3]
[330642654,1719682253400,-1167.00722313,0.00013999,3]
[330642655,1719682253412,-630.18302999,0.00013999,3]
[330642656,1719682254344,-156.80974688,0.00013999,3]
[330642657,1719682254354,-500.0,0.00013999,3]
[330642658,1719682254363,-119.86338392,0.00013999,2]
[330642659,1719682254398,-31.13661608,0.00013999,2]
[330642660,1719682254410,-151.0,0.00013999,2]
[330642661,1719682254420,-176.87620359,0.00013999,2]
[330642662,1719682254431,-346.44906839,0.00013999,2]
[330642663,1719682254443,-551.22472802,0.00013999,2]
[330642664,1719682254453,-1074.55,0.00013999,2]
[330642665,1719682254463,-151.0,0.00013999,2]
[330642666,1719682254472,-772.83016211,0.00013999,2]
[330642667,1719682254489,-301.71983789,0.00013999,2]
[330642668,1719682254499,-1074.55,0.00013999,2]
[330642669,1719682254509,-1074.55,0.00013999,2]
[330642670,1719682254518,-1074.55,0.00013999,2]
[330642671,1719682254528,-1074.55,0.00013999,2]
[330642672,1719682254537,-1074.55,0.00013999,2]
[330642673,1719682254547,-1263.08,0.00013999,3]
[330642674,1719682254556,-1074.55,0.00013999,2]
[330642675,1719682254566,-567.6233178,0.00013999,2]
[330642676,1719682396001,1028.441659,0.00024999,120]
[330642677,1719682412925,3732.42,0.00011199,2]
[330642678,1719682416535,3106.52214219,0.00011199,2]
[330642682,1719682439171,413.22,0.00010977,2]
[330642684,1719682454593,2374.1385064,0.00011199,2]
[330642685,1719682543937,27982.4971482,0.000112,2]
[330642687,1719682662629,690.00328514,0.00011098,2]
[330642690,1719682702015,657.99122263,0.00011098,2]
[330642693,1719682734677,523.44090366,0.00011098,2]
[330642694,1719682754924,173.54,0.00010055,2]
[330642695,1719682756948,517.9671284,0.00011098,2]
[330642696,1719682789078,430.72398408,0.00011098,2]
[330642697,1719682789357,182.2394226,0.00011098,2]
[330642698,1719682792919,206.69850355,0.00011098,2]
[330642699,1719682811147,155.14087225,0.00011098,2]
[330642700,1719682840154,307.18748065,0.00011098,2]
[330642701,1719682896333,5379.22250699,0.00011098,2]
[330642702,1719682923258,-494.62242941,0.00011197,2]
[330642703,1719682923282,-155.0,0.00011199,2]
[330642704,1719682923303,-7012.95977059,0.000112,2]
[330642705,1719682927386,-10000.0,0.000112,2]
[330642706,1719682927855,-10000.0,0.000112,2]
[330642707,1719682928292,-10000.0,0.000112,2]
[330642708,1719682929206,-94.14113574,0.000112,2]
[330642709,1719682929231,-2266.50196297,0.000118,2]
[330642710,1719682929255,-210.17975366,0.00012302,2]
[330642711,1719682929278,-181.97803013,0.00012302,2]
[330642712,1719682929300,-399.88147407,0.00012314,2]
[330642713,1719682949497,-6113.13697156,0.00012434,2]
[330642714,1719682949520,-734.18067187,0.00012434,2]
[330642715,1719682969093,-155.0,0.00012314,2]
[330642716,1719682969114,-4265.81932813,0.00012434,2]
[330642717,1719682969135,-5000.0,0.00012434,2]
[330642718,1719682969157,-579.18067187,0.00012548,2]
[330642719,1719682969663,-7817.66932813,0.00012548,2]
[330642720,1719682969684,-1000.0,0.00012647,2]
[330642721,1719682969705,-1182.33067187,0.00012647,2]
[330642722,1719683014590,392.55,0.00010826,2]
[330642724,1719683194617,530.19091771,0.00011098,2]
[330642725,1719683293527,5380.72155244,0.00011098,2]
[330642727,1719683363976,206.12734629,0.00011098,2]
[330642732,1719683432288,-208.77029203,0.00011199,2]
[330642734,1719683432297,-2376.06489013,0.00011199,2]
[330642735,1719683432307,-480.45260202,0.00011199,2]
[330642736,1719683432319,-14762.76530561,0.00011199,2]
[330642737,1719683432329,-2004.97925289,0.00012273,2]
[330642738,1719683432339,-317.75721755,0.00012302,2]
[330642739,1719683432435,-250.0,0.00012635,2]
[330642740,1719683432446,-117.66932813,0.00012647,2]
[330642741,1719683432456,-900.0,0.00012647,2]
[330642742,1719683432466,-250.0,0.00012666,2]
[330642743,1719683432475,-891.64268279,0.00012674,2]
[330642746,1719683432796,-2.354e-05,0.00012674,2]
[330642747,1719683432808,-108.35729367,0.00012674,2]
[330642749,1719683432821,-181.67,0.00012737,2]
[330642750,1719683432830,-150.0,0.00012767,2]
[330642751,1719683432843,-55.16181552,0.00012863,2]
[330642752,1719683432854,-115.58818448,0.00012863,2]
[330642753,1719683432863,-177.94,0.00012966,2]
[330642754,1719683432873,-392.55,0.0001309,2]
[330642755,1719683432882,-177.51,0.00013138,2]
[330642756,1719683432891,-188.84,0.00013221,2]
[330642757,1719683432900,-1251.52373192,0.00013452,2]
[330642758,1719683432910,-206.41287952,0.00013452,2]
[330642759,1719683432919,-1017.73480074,0.00013469,2]
[330642760,1719683432930,-282.26519926,0.00013469,2]
[330642761,1719683432940,-482.34107023,0.00013469,2]
[330642762,1719683432983,-417.65892977,0.00013469,2]
[330642763,1719683432992,-853.59,0.00013479,2]
[330642764,1719683433002,-418.77,0.00013479,2]
[330642765,1719683433011,-853.59,0.00013479,2]
[330642766,1719683433021,-418.77,0.00013479,2]
[330642767,1719683433030,-418.77,0.00013479,2]
[330642768,1719683433040,-853.59,0.00013479,2]
[330642769,1719683433049,-418.77,0.00013479,2]
[330642770,1719683433060,-853.59,0.00013479,2]
[330642771,1719683433076,-418.77,0.00013479,2]
[330642772,1719683433085,-853.59,0.00013479,2]
[330642773,1719683433094,-927.54,0.00013479,2]
[330642774,1719683433103,-491.69,0.00013479,2]
[330642775,1719683433112,-150.0,0.00013615,2]
[330642776,1719683433122,-300.0,0.00013616,2]
[330642777,1719683433133,-150.0,0.00013616,2]
[330642778,1719683433142,-150.0,0.00013616,2]
[330642779,1719683433152,-150.0,0.00013616,2]
[330642780,1719683433162,-150.0,0.00013616,2]
[330642781,1719683433172,-164.75,0.00013616,2]
[330642782,1719683433182,-528.11,0.00013616,2]
[330642783,1719683433191,-424.06,0.00013616,2]
[330642784,1719683433201,-150.0,0.00013616,2]
[330642785,1719683433210,-354.62,0.00013616,2]
[330642786,1719683433220,-150.0,0.00013616,2]
[330642787,1719683433230,-150.0,0.00013616,2]
[330642788,1719683433239,-424.06,0.00013616,2]
[330642789,1719683433249,-528.11,0.00013616,2]
[330642790,1719683433259,-354.62,0.00013616,2]
[330642791,1719683433268,-150.0,0.00013616,2]
[330642792,1719683433277,-164.75,0.00013616,2]
[330642793,1719683433288,-150.0,0.00013616,2]
[330642794,1719683433297,-424.06,0.00013616,2]
[330642795,1719683433306,-354.62,0.00013616,2]
[330642796,1719683433317,-150.0,0.00013616,2]
[330642797,1719683433327,-164.75,0.00013616,2]
[330642798,1719683433336,-528.11,0.00013616,2]
[330642799,1719683433345,-150.0,0.00013616,2]
[330642800,1719683433355,-424.06,0.00013616,2]
[330642801,1719683433364,-528.11,0.00013616,2]
[330642802,1719683433373,-150.0,0.00013616,2]
[330642803,1719683433382,-164.75,0.00013616,2]
[330642804,1719683433392,-354.62,0.00013616,2]
[330642805,1719683433401,-417.56,0.00013616,2]
[330642806,1719683433410,-525.06,0.00013616,2]
[330642807,1719683433419,-163.95,0.00013616,2]
[330642808,1719683433428,-354.62,0.00013616,2]
[330642809,1719683433438,-706.42,0.00013616,2]
[330642810,1719683433447,-212.1991,0.00013689,2]
[330642811,1719683433456,-243.93,0.00013699,2]
[330642812,1719683433465,-205.18,0.00013699,2]
[330642813,1719683433474,-1000.0,0.000137,2]
[330642814,1719683433483,-393.37866053,0.0001378,2]
[330642815,1719683433493,-220.18,0.00013781,2]
[330642816,1719683433503,-165.50364453,0.00013788,2]
[330642817,1719683433512,-183.81698288,0.00013788,2]
[330642818,1719683433521,-318.11062296,0.00013788,2]
[330642819,1719683433531,-299.4225,0.00013789,2]
[330642820,1719683433540,-18597.095,0.00013789,2]
[330642821,1719683433551,-1139.0121,0.00013789,2]
[330642822,1719683433561,-11809.82523138,0.0001379,2]
[330642823,1719683433571,-175.28534036,0.0001379,2]
[330642824,1719683433581,-176.13900663,0.0001379,2]
[330642825,1719683433590,-184.29208948,0.0001379,2]
[330642826,1719683433599,-165.89174024,0.0001379,2]
[330642827,1719683433610,-6292.3502,0.0001379,2]
[330642828,1719683433619,-500.0,0.0001379,2]
[330642829,1719683433628,-62429.7435,0.0001379,2]
[330642830,1719683433638,-1806.38148273,0.00013799,2]
[330642831,1719683433647,-1559.971896,0.000138,2]
[330642832,1719683433656,-183.81698287,0.000138,2]
[330642833,1719683433665,-172.41,0.00013851,2]
[330642834,1719683433674,-500.60744,0.0001386,2]
[330642835,1719683433683,-3128.07,0.00013886,3]
[330642836,1719683433692,-3018.27,0.00013886,3]
[330642837,1719683433702,-1228.49,0.00013887,3]
[330642838,1719683433711,-979.63,0.00013887,3]
[330642839,1719683433720,-500.0,0.00013887,3]
[330642840,1719683433730,-500.0,0.00013887,3]
[330642841,1719683433739,-1022.36,0.00013887,3]
[330642842,1719683433748,-500.0,0.00013887,3]
[330642843,1719683433758,-1324.51,0.00013887,3]
[330642844,1719683433767,-1928.4,0.00013887,3]
[330642845,1719683433779,-500.0,0.00013887,3]
[330642846,1719683433789,-751.04,0.00013887,3]
[330642847,1719683433798,-500.0,0.00013887,3]
[330642848,1719683433808,-500.0,0.00013887,3]
[330642849,1719683433818,-548.81,0.00013887,3]
[330642850,1719683433827,-850.36,0.00013887,3]
[330642851,1719683433836,-449.01740291,0.00013887,3]
[330642852,1719683433848,-661.49,0.00013887,3]
[330642853,1719683433857,-1073.71,0.00013887,3]
[330642854,1719683433866,-1084.32,0.00013887,3]
[330642855,1719683433877,-500.0,0.00013887,3]
[330642856,1719683433887,-500.0,0.00013887,3]
[330642857,1719683433896,-500.0,0.00013887,3]
[330642858,1719683433906,-2902.47,0.00013887,3]
[330642859,1719683433915,-500.0,0.00013887,3]
[330642860,1719683433925,-8614.77,0.00013887,3]
[330642861,1719683433935,-528.4,0.00013887,3]
[330642862,1719683433944,-1410.39,0.00013887,3]
[330642863,1719683433954,-500.0,0.00013887,3]
[330642864,1719683433965,-1301.42,0.00013887,3]
[330642865,1719683433975,-500.0,0.00013887,3]
[330642866,1719683433984,-5642.79,0.00013887,3]
[330642867,1719683433993,-500.0,0.00013887,3]
[330642868,1719683434003,-500.0,0.00013887,3]
[330642869,1719683434013,-500.0,0.00013887,3]
[330642870,1719683434022,-933.28,0.00013887,3]
[330642871,1719683434032,-13776.1,0.00013887,3]
[330642872,1719683434041,-500.0,0.00013887,3]
[330642873,1719683434053,-531.8,0.00013887,3]
[330642874,1719683434063,-1096.77,0.00013887,3]
[330642875,1719683434078,-809.06,0.00013887,3]
[330642876,1719683434087,-500.0,0.00013887,3]
[330642877,1719683434096,-500.0,0.00013887,3]
[330642878,1719683434107,-500.0,0.00013887,3]
[330642879,1719683434116,-500.0,0.00013887,3]
[330642880,1719683434126,-526.82,0.00013887,3]
[330642881,1719683434135,-500.0,0.00013887,3]
[330642882,1719683434145,-3916.87,0.00013887,3]
[330642883,1719683434154,-500.0,0.00013887,3]
[330642884,1719683434163,-500.0,0.00013887,3]
[330642885,1719683434173,-500.0,0.00013887,3]
[330642886,1719683434182,-500.0,0.00013887,3]
[330642887,1719683434191,-500.0,0.00013887,3]
[330642888,1719683434201,-3899.94,0.00013887,3]
[330642889,1719683434211,-500.0,0.00013887,3]
[330642890,1719683434220,-500.0,0.00013887,3]
[330642891,1719683434229,-1384.98,0.00013887,3]
[330642892,1719683434239,-500.0,0.00013887,3]
[330642893,1719683434248,-7387.77,0.00013887,3]
[330642894,1719683434257,-500.0,0.00013887,3]
[330642895,1719683434267,-500.0,0.00013887,3]
[330642896,1719683434276,-5065.35,0.00013887,3]
[330642897,1719683434285,-500.0,0.00013887,3]
[330642898,1719683434295,-591.24097203,0.00013887,3]
[330642899,1719683434304,-500.0,0.00013887,3]
[330642900,1719683434314,-500.0,0.00013887,3]
[330642901,1719683434324,-500.0,0.00013887,3]
[330642902,1719683434334,-500.0,0.00013887,3]
[330642903,1719683434343,-500.0,0.00013887,3]
[330642904,1719683434353,-6216.08,0.00013887,3]
[330642905,1719683434364,-500.0,0.00013887,3]
[330642906,1719683434375,-728.38,0.00013887,3]
[330642907,1719683434385,-500.0,0.00013887,3]
[330642908,1719683434394,-3328.08,0.00013887,3]
[330642909,1719683434404,-500.0,0.00013887,3]
[330642910,1719683434413,-1062.55,0.00013887,3]
[330642911,1719683434422,-500.0,0.00013887,3]
[330642912,1719683434431,-6274.8,0.00013887,3]
[330642913,1719683434440,-606.49,0.00013887,3]
[330642914,1719683434450,-695.67,0.00013887,3]
[330642915,1719683434459,-500.0,0.00013887,3]
[330642916,1719683434469,-921.22,0.00013887,3]
[330642917,1719683434479,-813.59,0.00013887,3]
[330642918,1719683434489,-3059.27,0.00013887,3]
[330642919,1719683434498,-529.52,0.00013887,3]
[330642920,1719683434507,-559.17,0.00013887,3]
[330642921,1719683434517,-4300.37,0.00013887,3]
[330642922,1719683434527,-500.0,0.00013887,3]
[330642923,1719683434536,-500.0,0.00013887,3]
[330642924,1719683434547,-500.0,0.00013887,3]
[330642925,1719683434557,-3038.93,0.00013887,3]
[330642926,1719683434566,-500.0,0.00013887,3]
[330642927,1719683434576,-500.0,0.00013887,3]
[330642928,1719683434585,-500.0,0.00013887,3]
[330642929,1719683434595,-500.0,0.00013887,3]
[330642930,1719683434604,-955.92,0.00013887,3]
[330642931,1719683434613,-1376.3171769,0.00013887,3]
[330642932,1719683434626,-375.9528231,0.00013887,3]
[330642933,1719683434635,-239.8176969,0.00013887,3]
[330642934,1719683434647,-359.63841064,0.00013887,3]
[330642935,1719683434658,-263.47322908,0.00013887,3]
[330642946,1719683437664,-535.11,0.00013886,3]
[330642947,1719683437674,-2134.66066338,0.00013887,3]
[330642948,1719683437684,-500.0,0.00013887,3]
[330642949,1719683437694,-2041.49944644,0.00013887,3]
[330642950,1719683437706,-537.57055356,0.00013887,3]
[330642951,1719683437716,-500.0,0.00013887,3]
[330642952,1719683437726,-582.47,0.00013887,3]
[330642953,1719683437736,-7684.42,0.00013887,3]
[330642954,1719683437746,-500.0,0.00013887,3]
[330642955,1719683437756,-2781.54,0.00013887,3]
[330642956,1719683437766,-500.0,0.00013888,2]
[330642957,1719683437776,-200.0,0.00013888,2]
[330642958,1719683437787,-1715.33,0.00013888,3]
[330642959,1719683437797,-2184.97,0.00013888,3]
[330642960,1719683437807,-1708.93,0.00013888,3]
[330642961,1719683437816,-1161.69,0.00013888,3]
[330642962,1719683437827,-1067.49,0.00013888,3]
[330642963,1719683437836,-500.0,0.00013888,3]
[330642964,1719683437846,-3051.91,0.00013888,3]
[330642965,1719683437856,-1592.56,0.00013888,3]
[330642966,1719683437866,-724.7,0.00013888,3]
[330642967,1719683437876,-1467.04,0.00013888,3]
[330642968,1719683437886,-1739.63,0.00013888,3]
[330642969,1719683437895,-2566.02,0.00013888,3]
[330642970,1719683437906,-3192.38,0.00013888,3]
[330642971,1719683437916,-2619.49,0.00013888,3]
[330642972,1719683437926,-2271.81,0.00013888,3]
[330642973,1719683437935,-2844.93,0.00013888,3]
[330642974,1719683437945,-574.27,0.00013888,3]
[330642975,1719683437955,-4079.25,0.00013888,3]
[330642976,1719683437965,-1937.52,0.00013888,3]
[330642977,1719683437975,-1518.78,0.00013888,3]
[330642978,1719683437986,-621.86,0.00013888,3]
[330642979,1719683437996,-631.92,0.00013888,3]
[330642980,1719683438006,-500.0,0.00013888,3]
[330642981,1719683438016,-9230.02,0.00013888,3]
[330642982,1719683438026,-1176.76,0.00013888,3]
[330642983,1719683438036,-500.0,0.00013888,3]
[330642984,1719683438046,-1923.24,0.00013888,3]
[330642985,1719683438056,-5157.13,0.00013888,3]
[330642987,1719683438071,-2097.33,0.00013888,3]
[330642989,1719683438082,-500.0,0.00013888,3]
[330642991,1719683438092,-1053.09,0.00013888,3]
[330642993,1719683438103,-500.0,0.00013888,3]
[330642995,1719683438116,-2815.0,0.00013888,3]
[330642997,1719683438126,-525.17,0.00013888,3]
[330642999,1719683438136,-7627.92,0.00013888,3]
[330643001,1719683438146,-2676.99,0.00013888,3]
[330643003,1719683438157,-1357.07,0.00013888,3]
[330643006,1719683438169,-500.0,0.00013888,3]
[330643008,1719683438178,-1251.71,0.00013888,3]
[330643009,1719683438188,-5863.14,0.00013888,3]
[330643012,1719683438199,-2091.34,0.00013888,3]
[330643014,1719683438208,-671.42,0.00013888,3]
[330643016,1719683438218,-500.0,0.00013888,3]
[330643017,1719683438228,-500.0,0.00013888,3]
[330643019,1719683438238,-4793.24,0.00013888,3]
[330643023,1719683438249,-2244.2,0.00013888,3]
[330643025,1719683438259,-1157.83,0.00013888,3]
[330643027,1719683438269,-1791.17,0.00013888,3]
[330643029,1719683438279,-1586.64328106,0.00013888,3]
[330643031,1719683438292,-353.30671894,0.00013888,3]
[330643033,1719683438301,-161.98033558,0.00013888,3]
[330643035,1719683438314,-338.01966442,0.00013888,3]
[330643037,1719683438326,-500.0,0.00013888,2]